Cogmind - Beta 13 @@@ ROGUE MODE // 2024.05.20 @ 15:52:19 Player: Johnny5001 Result: Destroyed by Y-45 Defender with Heavy Assault Rifle Performance ------------- Evolutions (2) 1000 Regions Visited (9) 1800 Robots Destroyed (63) 315 Value Destroyed (2184) 2184 Prototype IDs (9) 180 Alien Tech Used (0) 0 Bonus (1625) 1625 TOTAL SCORE: 7104 Bonus ------- Follower Combat Kills 425 Entered Garrisons 200 Used RIF Installer 1000 Cogmind --------- Core Integrity 0/550 Matter 212/300 Energy 376/500 System Corruption 26% Temperature Cool (13) Movement Walking (120) Location -8/Garrison Parts ------- > --- POWER (1) -------- F-cell Engine > --- PROPULSION (4) --- Aluminum Leg Aluminum Leg Carbon-fiber Leg (fused) Carbon-fiber Leg > --- UTILITY (4) ------ Medium Storage Unit Hacking Suite System Shield > --- WEAPON (2) ------- Light Assault Rifle > --- INVENTORY (10) --- Improved Ion Engine Aluminum Leg Medium Storage Unit Relay Coupler [NC] (21) Precision Beam Rifle Gauss Rifle Datajack Datajack Plasma Cutter Maul Peak State ------------ > --- POWER ------------ F-cell Engine > --- PROPULSION ------- Improved Aluminum Leg Carbon-fiber Leg Carbon-fiber Leg Carbon-fiber Leg > --- UTILITY ---------- Medium Storage Unit Light Armor Plating Hardened Light Armor Plating Drone Bay > --- WEAPON ----------- Heavy Assault Rifle Improved Heavy Machine Gun > --- INVENTORY -------- Ion Engine Medium Storage Unit Hacking Suite System Shield Precision Beam Rifle EM Pulse Cannon Improved Assault Rifle Plasma Cutter Maul [Rating: 36] Favorites ----------- Power Improved Ion Engine Engine Improved Ion Engine Propulsion Aluminum Leg Treads Light Treads Leg Aluminum Leg Utility Medium Storage Unit Device Structural Scanner Storage Medium Storage Unit Processor Advanced Visual Processing Unit Hackware Hacking Suite Protection Hardened Light Armor Plating Weapon Heavy Assault Rifle Energy Gun Beam Rifle Energy Cannon Beam Cannon Ballistic Gun Heavy Assault Rifle Ballistic Cannon Assault Cannon Launcher Grenade Launcher Special Weapon Plasma Cutter Impact Weapon Maul Special Melee Weapon Datajack Build | -11 -10 -10 -9 -9 -9 -8 -8 -8 -8 ------- Run | Yrd Mat Min Mat Min Exi Min Mat Sto Gar Slots Evolved 4 | . . . 2 . . . 2 . . Power . | . . . . . . . . . . Propulsion 2 | . . . . . . . 2 . . Utility 2 | . . . 2 . . . . . . Weapon . | . . . . . . . . . . Parts Attached 101 | 7 2 3 17 4 . 9 5 38 16 Power 11 | 1 . 1 4 . . 1 . 4 . Engine 11 | 1 . 1 4 . . 1 . 4 . Core . | . . . . . . . . . . Reactor . | . . . . . . . . . . Propulsion 23 | 2 . . 2 2 . 1 2 10 4 Treads 1 | . . . . . . . . . 1 Leg 22 | 2 . . 2 2 . 1 2 10 3 Wheel . | . . . . . . . . . . Hover . | . . . . . . . . . . Flight . | . . . . . . . . . . Utility 30 | 2 1 1 5 1 . 4 1 12 3 Device 12 | 1 . 1 3 . . 1 1 5 . Storage 5 | 1 1 . . 1 . 1 . 1 . Processor 3 | . . . 1 . . 1 . 1 . Hackware 3 | . . . . . . . . . 3 Protection 7 | . . . 1 . . 1 . 5 . Artifact . | . . . . . . . . . . Weapon 37 | 2 1 1 6 1 . 3 2 12 9 Energy Gun 4 | . . . 1 . . 1 . 2 . Energy Cannon 1 | . 1 . . . . . . . . Ballistic Gun 13 | 2 . . 3 . . . . 4 4 Ballistic Cannon 2 | . . . . . . . . 2 . Launcher 3 | . . 1 . 1 . . 1 . . Special Weapon 4 | . . . . . . . . 2 2 Impact Weapon 8 | . . . 2 . . 1 1 2 2 Slashing Weapon . | . . . . . . . . . . Piercing Weapon . | . . . . . . . . . . Special Melee Weapon 2 | . . . . . . 1 . . 1 Unidentified Prototypes 5 | . . . . . . . . 5 . Parts Lost 33 | . . 2 1 2 . 6 4 12 6 Power 3 | . . 1 . . . 1 . 1 . Propulsion 11 | . . . . 1 . . 1 6 3 Utility 14 | . . 1 1 1 . 3 1 5 2 Weapon 5 | . . . . . . 2 2 . 1 Highest Loss Streak 6 | . . 2 1 1 . 5 4 6 2 To Critical Strikes 2 | . . . . . . 1 . . 1 Average Slot Usage (%) 96 | . 99 99 96 94 100 99 98 87 95 Engine 10 | . 14 14 11 11 11 10 9 8 9 Leg 24 | . 28 28 22 21 22 22 35 27 27 Device 15 | . 14 13 18 22 22 19 8 6 4 Storage 14 | . 14 14 11 11 22 18 18 9 9 Processor 2 | . . . 9 . . 1 9 4 . Hackware 1 | . . . . . . . . . 13 Protection 4 | . . . 1 5 . 3 . 11 8 Energy Gun 1 | . . . 8 . . 1 8 2 . Energy Cannon 1 | . 11 14 . . . . . . . Ballistic Gun 7 | . 15 . 11 11 11 3 . 6 13 Launcher 4 | . . 13 . 11 11 . 6 . . Impact Weapon 3 | . . . 1 . . 10 2 2 . Special Melee Weapon 1 | . . . . . . 6 . . 1 Naked Turns . | . . . . . . . . . . Heaviest Build 44 | 12 19 20 28 35 35 35 38 44 43 Greatest Support 62 | 20 20 20 20 23 23 23 48 62 58 Greatest Overweight (x) 2 | 2 . . 1 1 1 1 . 2 1 Average Overweight (x) . | . . . . 1 1 . . . . Largest Inventory Capacity 10 | 8 10 10 10 10 10 10 10 10 10 Average Capacity 9 | 7 8 10 10 10 10 10 10 10 10 Most Carried 10 | 6 10 10 10 10 10 10 10 10 10 Average Carried 9 | 3 8 9 9 9 10 9 9 9 9 Final Capacity 10 | 8 10 10 10 10 10 10 10 10 10 Final Carried 10 | 6 10 10 10 10 10 10 8 10 10 Class Distribution -------------------- 60% | Scavenger-Mutant 31% | Mutant 4% | Hacker-Mutant 3% | Commander-Mutant Dominant Class ---------------- Mutant | -10/Materials Mutant | -10/Mines Mutant | -9/Materials Scavenger-Mutant | -9/Mines Scavenger-Mutant | -9/Exiles Scavenger-Mutant | -8/Mines Scavenger-Mutant | -8/Materials Mutant | -8/Storage Hacker-Mutant | -8/Garrison Resources | -11 -10 -10 -9 -9 -9 -8 -8 -8 -8 ----------- Run | Yrd Mat Min Mat Min Exi Min Mat Sto Gar Matter Collected 2342 | 205 106 145 161 152 . 347 31 783 412 Remotely . | . . . . . . . . . . Salvage Created 2033 | 18 119 23 326 226 . 253 111 509 448 Parts 113 | 3 3 . 24 14 . 1 15 25 28 Haulers Intercepted 2 | . 1 . . . . . 1 . . Recyclers Shooed 1 | . . . 1 . . . . . . Parts Field Recycled . | . . . . . . . . . . Retrieved Matter . | . . . . . . . . . . Parts Self-Destructed . | . . . . . . . . . . Prevented . | . . . . . . . . . . Kills | -11 -10 -10 -9 -9 -9 -8 -8 -8 -8 ------- Run | Yrd Mat Min Mat Min Exi Min Mat Sto Gar Combat Hostiles Destroyed 62 | . 2 11 6 10 . 3 5 13 12 Melee 1 | . . . . . . 1 . . . Guns 26 | . 1 . 6 . . . . 7 12 Cannons 7 | . 1 . . . . . . 6 . AOE 26 | . . 11 . 10 . . 5 . . Classes Destroyed 16 | 1 2 1 3 3 . 1 3 1 1 Worker 1 | . . . . 1 . . . . . Builder 2 | . . . . . . 2 . . . Tunneler 2 | 1 . . . 1 . . . . . Hauler 2 | . 1 . . . . . 1 . . Recycler 2 | . . . . 1 . 1 . . . Operator 2 | . . . . . . . 2 . . Watcher 1 | . . . 1 . . . . . . Swarmer 6 | . . . . . . . 3 . 3 Grunt 23 | . 2 . 2 8 . 2 . 4 5 Brawler 2 | . . . 1 . . 1 . . . Duelist 3 | . . . . 2 . . . 1 . Sentry 12 | . . . 3 . . . 1 7 1 Demolisher 1 | . . . . . . . . 1 . Hunter 1 | . . . . . . . 1 . . Programmer 3 | . . . . . . . . . 3 Assembled 11 | . . 11 . . . . . . . Best Kill Streak 11 | 1 2 11 3 4 . 3 3 4 4 Combat Bots Only 11 | . 2 11 2 3 . 2 3 4 4 Max Kills in Single Turn 4 | 1 1 4 1 1 . 1 2 1 2 Gunslinging 1 | . . . . . . . . . 1 Exploded 4 | . . 4 . 1 . . 2 . . Melee 1 | . . . . . . 1 . . . Uniques/NPCs Destroyed . | . . . . . . . . . . Combat | -11 -10 -10 -9 -9 -9 -8 -8 -8 -8 -------- Run | Yrd Mat Min Mat Min Exi Min Mat Sto Gar Hostile Shots Fired 383 | . 6 12 49 31 . 21 47 127 90 Missed 108 | . 1 5 10 13 . 3 21 28 27 Damage Taken 5435 | . 70 283 543 286 . 367 543 2523 820 Core 819 | . 16 89 81 22 . 50 189 245 127 Absorbed by Shields 129 | . . . . . . . 50 . 79 Ignored by Resistances 44 | . . . . . . . . 44 . Core Remaining (%) 73 | 100 . 58 . . . 61 . . . Volleys Fired 194 | 1 9 13 21 35 . . 9 69 37 Largest 2 | 2 2 1 2 1 . . 1 2 2 Hottest 105 | 40 80 60 65 30 . . 36 105 38 Shots Fired 294 | 2 18 13 37 35 . . 9 113 67 Gun 173 | 2 9 . 37 4 . . . 54 67 Cannon 71 | . 9 3 . . . . . 59 . Launcher 50 | . . 10 . 31 . . 9 . . Special . | . . . . . . . . . . Kinetic 202 | 2 9 . 25 4 . . . 95 67 Thermal 30 | . 9 3 . . . . . 18 . Explosive 50 | . . 10 . 31 . . 9 . . Electromagnetic 12 | . . . 12 . . . . . . Robot Hit Streak 31 | 1 6 7 12 13 . . 5 31 8 Robot Miss Streak 3 | 1 1 3 2 2 . . 1 3 2 Penetration Max . | . . . . . . . . . . Secondary Targets 4 | . . . 1 . . . . 1 2 Max Gunslinging Chain 1 | . . . 1 . . . . 1 1 Shots Hit Robots 202 | 1 13 5 35 14 . 18 5 66 45 Core Hits 114 | 1 5 16 16 23 . 1 10 24 18 Critical Kills 1 | . . . . . . 1 . . . Critical Parts Destroyed 3 | . . . . . . 3 . . . Critical Strikes 5 | . . . . . . 4 . 1 . Burn 1 | . . . . . . . . 1 . Smash 4 | . . . . . . 4 . . . Melee Attacks 35 | . . . 3 . . 23 1 4 4 Impact 28 | . . . 3 . . 17 1 4 3 Slashing . | . . . . . . . . . . Piercing . | . . . . . . . . . . Sneak Attacks 9 | . . . . . . 9 . . . Combat Hostiles . | . . . . . . . . . . Follow-up Attacks . | . . . . . . . . . . Damage Inflicted 5751 | 10 185 487 528 1274 . 575 404 1402 886 Guns 2169 | 10 80 . 491 42 . . . 660 886 Cannons 841 | . 105 17 . . . . . 719 . Explosions 2143 | . . 470 37 1232 . . 404 . . Melee 575 | . . . . . . 575 . . . Ramming 23 | . . . . . . . . 23 . Kinetic 2439 | 10 80 . 297 42 . . . 1124 886 Thermal 414 | . 105 17 37 . . . . 255 . Explosive 2106 | . . 470 . 1232 . . 404 . . Electromagnetic 194 | . . . 194 . . . . . . Impact 575 | . . . . . . 575 . . . Slashing . | . . . . . . . . . . Piercing . | . . . . . . . . . . Highest Corruption 26 | . . 3 . . . 17 . 18 26 Average Corruption 12 | . . 3 . . . 16 . 9 22 Corruption Purged . | . . . . . . . . . . Corruption Blocked . | . . . . . . . . . . Effects 86 | . . 8 . . . 11 . 31 36 Message Errors 22 | . . 4 . . . 2 . 9 7 Matter Fused 14 | . . 1 . . . 3 . 6 4 Heat Flow Errors 10 | . . 1 . . . 3 . 2 4 Energy Discharges 10 | . . . . . . 3 . 2 5 Parts Rejected 1 | . . . . . . . . . 1 Parts Fused 3 | . . . . . . . . 2 1 Data Loss (minor) 14 | . . 1 . . . . . 8 5 Data Loss (major) 3 | . . 1 . . . . . 1 1 Misfires 2 | . . . . . . . . 1 1 Alerts 2 | . . . . . . . . . 2 Misdirections 3 | . . . . . . . . . 3 Weapon Failures 2 | . . . . . . . . . 2 Overload Shots . | . . . . . . . . . . Overflow Damage 365 | . . 16 . 38 . 299 12 . . Projectiles 17 | . . . . . . 17 . . . Explosions 66 | . . 16 . 38 . . 12 . . Melee 282 | . . . . . . 282 . . . Knockbacks 8 | . . . . . . 4 . 4 . Impact 3 | . . . . . . 3 . . . Kinetic 3 | . . . . . . . . 3 . Secondary 2 | . . . . . . 1 . 1 . Self-Inflicted Damage 198 | . . 141 . 57 . . . . . Shots 9 | . . 6 . 3 . . . . . Rammed . | . . . . . . . . . . Targets Rammed 5 | . . . . . . . . 5 . Kicked 5 | . . . . . . . . 5 . Crushed . | . . . . . . . . . . Highest Temperature 391 | . 111 120 . . . 203 6 391 253 Average Temperature 123 | . 53 46 . . . 93 6 154 81 Received Heat Transfer 1374 | . 39 . 228 129 . 126 72 558 222 Effects 3 | . . . . . . . . 3 . Energy Bleed 1 | . . . . . . . . 1 . Short Circuit 1 | . . . . . . . . 1 . Damage (minor) 1 | . . . . . . . . 1 . Siege Activations . | . . . . . . . . . . Robots Corrupted . | . . . . . . . . . . Combat Hostiles . | . . . . . . . . . . Parts Fried 5 | . . . . . . 5 . . . Impact Corruptions 11 | . . . . . . 11 . . . Robots Melted . | . . . . . . . . . . Combat Hostiles . | . . . . . . . . . . Parts Melted 2 | . . . . . . . . 2 . Heat Transferred 888 | . 222 37 . . . . . 629 . Parts Sabotaged . | . . . . . . . . . . Parts Stolen . | . . . . . . . . . . Parts Stripped . | . . . . . . . . . . Power Chain Reactions 1 | . . . 1 . . . . . . Alert | -11 -10 -10 -9 -9 -9 -8 -8 -8 -8 ------- Run | Yrd Mat Min Mat Min Exi Min Mat Sto Gar Peak Influence 383 | 5 90 60 311 322 . 55 214 253 383 Initial 146 | . 3 34 . 73 . . 14 38 146 Average 99 | 1 33 23 164 158 . 11 87 116 277 Maximum Alert Level 1 | . . . 1 1 . . 1 1 1 Low Security (%) 77 | 100 100 100 70 58 . 100 89 81 12 Level 1 22 | . . . 29 41 . . 10 18 87 Level 2 . | . . . . . . . . . . Level 3 . | . . . . . . . . . . Level 4 . | . . . . . . . . . . Level 5 . | . . . . . . . . . . High Security . | . . . . . . . . . . Max Security . | . . . . . . . . . . Squads Dispatched 8 | . 1 . 1 . . . 1 5 . Investigation . | . . . . . . . . . . Extermination . | . . . . . . . . . . Reinforcement 3 | . 1 . 1 . . . 1 . . Assault 2 | . . . . . . . . 2 . Garrison 3 | . . . . . . . . 3 . Intercept . | . . . . . . . . . . Searches Triggered . | . . . . . . . . . . Construction Impeded . | . . . . . . . . . . Haulers Reinforced . | . . . . . . . . . . Active Scanning Responses . | . . . . . . . . . . Cargo Convoy Interrupts . | . . . . . . . . . . Stealth | -11 -10 -10 -9 -9 -9 -8 -8 -8 -8 --------- Run | Yrd Mat Min Mat Min Exi Min Mat Sto Gar Distress Signals 6 | . . . 2 . . . 1 3 . Communications Jammed . | . . . . . . . . . . Distress Signals . | . . . . . . . . . . Times Spotted 117 | . 5 16 19 9 . 10 16 25 17 Peak Tracking Total 13 | . 4 13 7 3 . 3 9 5 4 Tactical Retreats 9 | . . 1 1 . . 4 . 2 1 Traps | -11 -10 -10 -9 -9 -9 -8 -8 -8 -8 ------- Run | Yrd Mat Min Mat Min Exi Min Mat Sto Gar Traps Triggered 9 | . . . . . . . . 1 8 Indirectly . | . . . . . . . . . . Trap Hack Attempts . | . . . . . . . . . . Triggered . | . . . . . . . . . . Disarmed . | . . . . . . . . . . Reprogrammed . | . . . . . . . . . . Reused 2 | . . . . . . 2 . . . Traps Extracted . | . . . . . . . . . . Installed 2 | . . . . . . 2 . . . Triggered 2 | . . . . . . 2 . . . Most Traps Carried 2 | . . . . 2 2 2 . . . Machines | -11 -10 -10 -9 -9 -9 -8 -8 -8 -8 ---------- Run | Yrd Mat Min Mat Min Exi Min Mat Sto Gar Machines Disabled 3 | . . . . 1 . . 1 1 . Max in Single Turn 1 | . . . . 1 . . 1 . . Garrison Relay 2 | . . . . . . . . . 2 Phase Generator 1 | . . . . . . . . . 1 Machines Repaired . | . . . . . . . . . . Machines Dismantled 4 | . . . . . . . . 3 1 Machines Sabotaged . | . . . . . . . . . . Overloaded Fab Kills . | . . . . . . . . . . Hacking | -11 -10 -10 -9 -9 -9 -8 -8 -8 -8 --------- Run | Yrd Mat Min Mat Min Exi Min Mat Sto Gar Machines Accessed 31 | . 1 2 5 1 4 1 6 11 . Terminals 24 | . 1 2 5 1 . 1 5 9 . Fabricators . | . . . . . . . . . . Repair Stations 1 | . . . . . . . . 1 . Recycling Units . | . . . . . . . . . . Scanalyzers 1 | . . . . . . . 1 . . Garrison Access 1 | . . . . . . . . 1 . Total Hacks 77 | . 2 4 12 4 4 4 24 23 . Successful 45 | . 2 1 5 2 4 1 18 12 . Failed 32 | . . 3 7 2 . 3 6 11 . Catastrophic 4 | . . . 3 . . . 1 . . Database Lockouts . | . . . . . . . . . . Manual 27 | . 2 4 8 2 . 4 4 3 . Terminals 63 | . 2 4 12 4 . 4 18 19 . Fabricators . | . . . . . . . . . . Repair Stations 2 | . . . . . . . . 2 . Recycling Units . | . . . . . . . . . . Scanalyzers 6 | . . . . . . . 6 . . Garrison Access 2 | . . . . . . . . 2 . Terminal Hacks 29 | . 1 1 2 2 4 1 10 8 . Record 6 | . . . . 1 4 . 1 . . Part Schematic 1 | . . . . . . . . 1 . Robot Schematic 1 | . . . . . . 1 . . . Robot Analysis 2 | . . . . . . . 2 . . Prototype ID Bank 2 | . . . . . . . 1 1 . Open Door 3 | . . . . . . . . 3 . Branch Access Points 2 | . . 1 1 . . . . . . Terminal Index 1 | . 1 . . . . . . . . Alert Level 1 | . . . . . . . 1 . . Unreport Threat 3 | . . . . . . . 2 1 . Locate Traps 3 | . . . . . . . 2 1 . Zone Layout 4 | . . . 1 1 . . 1 1 . Fabricator Hacks . | . . . . . . . . . . Repair Station Hacks 1 | . . . . . . . . 1 . Scan Component 1 | . . . . . . . . 1 . Recycling Unit Hacks . | . . . . . . . . . . Scanalyzer 6 | . . . . . . . 6 . . Insert Component 3 | . . . . . . . 3 . . Analyze 3 | . . . . . . . 3 . . Garrison Access Hacks 1 | . . . . . . . . 1 . Unlock Access 1 | . . . . . . . . 1 . Unauthorized Hacks 8 | . 1 . 3 . . . 2 2 . Terminals 8 | . 1 . 3 . . . 2 2 . Botnet 8 | . 1 . 3 . . . 2 2 . Fabricators . | . . . . . . . . . . Repair Stations . | . . . . . . . . . . Recycling Units . | . . . . . . . . . . Scanalyzers . | . . . . . . . . . . Garrison Access . | . . . . . . . . . . Data Cores Recovered 1 | . . . . . . . 1 . . Used . | . . . . . . . . . . Hacking Detections 23 | . 1 2 5 1 . 1 6 7 . Full Trace Events . | . . . . . . . . . . Feedback Events . | . . . . . . . . . . Feedback Blocked . | . . . . . . . . . . Robot Schematics Acquired 1 | . . . . . . 1 . . . Robots Built . | . . . . . . . . . . Authchips . | . . . . . . . . . . Time . | . . . . . . . . . . Total Robot Build Rating . | . . . . . . . . . . Part Schematics Acquired 4 | . . . . . . . 3 1 . Parts Built . | . . . . . . . . . . Authchips . | . . . . . . . . . . Time . | . . . . . . . . . . Total Part Build Rating . | . . . . . . . . . . Parts Repaired . | . . . . . . . . . . Time . | . . . . . . . . . . Parts Recycled . | . . . . . . . . . . Recycled Matter . | . . . . . . . . . . Retrieved Matter . | . . . . . . . . . . Retrieved Components . | . . . . . . . . . . Parts Scanalyzed 3 | . . . . . . . 3 . . Part Schematics Acquired 3 | . . . . . . . 3 . . Parts Damaged . | . . . . . . . . . . Bothacking | -11 -10 -10 -9 -9 -9 -8 -8 -8 -8 ------------ Run | Yrd Mat Min Mat Min Exi Min Mat Sto Gar Used RIF Installer 2 | . . . . . . . . . 2 Signal Jammer 1 | . . . . . . . . . 1 Robots Hacked 6 | . . . . . . 5 . . 1 Non-combat 5 | . . . . . . 5 . . . Combat 1 | . . . . . . . . . 1 Robot Hacks Applied 6 | . . . . . . 5 . . 1 parse_system 3 | . . . . . . 3 . . . no_distress 2 | . . . . . . 2 . . . streamctrl_high 1 | . . . . . . . . . 1 Relay Couplers Released 6 | . . . . . . . . . 6 Machine Destruction 6 | . . . . . . . . . 6 Attached 1 | . . . . . . . . . 1 Fabnet Peak Effective % . | . . . . . . . . . . Robots Rewired . | . . . . . . . . . . Allies Hacked . | . . . . . . . . . . Hacks Repelled . | . . . . . . . . . . Allies | -11 -10 -10 -9 -9 -9 -8 -8 -8 -8 -------- Run | Yrd Mat Min Mat Min Exi Min Mat Sto Gar Total Allies 18 | . . 3 . 2 . . . 12 1 Largest Group 10 | . . 3 3 2 2 . . 10 1 Highest-Rated Group 173 | . . 40 40 45 45 . . 173 21 Highest-Rated Ally 31 | . . 16 16 31 31 . . 31 21 Total Orders 7 | . . . . . . . . 7 . EXPLORE 7 | . . . . . . . . 7 . Ally Attacks 123 | . . . 37 . . . . 84 2 Total Damage 1584 | . . . 425 . . . . 1122 37 Kills 14 | . . . 5 . . . . 9 . Allies Corrupted . | . . . . . . . . . . Allies Melted 1 | . . . . . . . . 1 . Intel | -11 -10 -10 -9 -9 -9 -8 -8 -8 -8 ------- Run | Yrd Mat Min Mat Min Exi Min Mat Sto Gar Robot Analysis Total 2 | . . . . . . . 2 . . Derelict Logs Recovered 4 | . . 3 . 1 . . . . . Drone Launches 8 | . . . . . . . . 8 . Drone Recoveries 1 | . . . . . . . . 1 . Exploration | -11 -10 -10 -9 -9 -9 -8 -8 -8 -8 ------------- Run | Yrd Mat Min Mat Min Exi Min Mat Sto Gar Turns Passed 7471 | 87 256 726 437 1176 888 1744 297 1197 663 Spaces Moved 3687 | 58 173 569 177 574 468 530 223 566 349 Core 9 | 9 . . . . . . . . . Treads . | . . . . . . . . . . Legs 3678 | 49 173 569 177 574 468 530 223 566 349 Wheels . | . . . . . . . . . . Hover . | . . . . . . . . . . Flight . | . . . . . . . . . . Fastest Speed 50 | 50 120 120 120 190 190 120 120 120 120 Average Speed 155 | 114 120 120 178 190 190 189 120 139 124 Slowest Speed 270 | 150 120 120 190 190 190 190 120 270 190 Overloaded Moves . | . . . . . . . . . . Propulsion Burnouts . | . . . . . . . . . . Robots Hopped . | . . . . . . . . . . Cave-ins Triggered 3 | . . . . . . . . 3 . Exploration Rate (%) 60 | 4 35 93 25 98 92 97 36 84 44 Regions Visited 9 Branch Regions 5 Pre-discovered Areas 3 | . . 3 . . . . . . . Known Exits Taken 3 | . . . 1 . . . 1 1 . Unknown Exits Taken 6 | 1 1 1 . 1 1 1 . . . Scrap Searched 7 | . . 3 . 1 . 3 . . . Spaces Dug 37 | . . . 3 7 . . 1 24 2 Terrain Destroyed 280 | . . 72 7 120 . . 50 29 2 Melee 10 | . . . 3 . . . 1 4 2 Projectile 25 | . . . . . . . . 25 . AOE 245 | . . 72 4 120 . . 49 . . Terrain Rammed . | . . . . . . . . . . Walls Destroyed . | . . . . . . . . . . Machines Disabled . | . . . . . . . . . . Actions | -11 -10 -10 -9 -9 -9 -8 -8 -8 -8 --------- Run | Yrd Mat Min Mat Min Exi Min Mat Sto Gar Total 4993 | 73 206 599 262 626 467 1233 243 791 493 Wait 790 | 2 7 9 21 7 . 659 . 59 26 Move 3678 | 57 172 568 176 573 467 529 222 565 349 Hop . | . . . . . . . . . . Pick Up 59 | 6 9 4 10 4 . 7 4 7 8 Fast Attach 37 | 7 1 . . . . 2 . 22 5 Attach 26 | . . 2 4 2 . 5 4 5 4 Detach 7 | . 1 . 1 . . . . 5 . Swap 39 | . 1 1 13 2 . 2 1 11 8 Drop 50 | . 6 2 13 3 . 4 2 13 7 Fire 194 | 1 9 13 21 35 . . 9 69 37 Melee 35 | . . . 3 . . 23 1 4 4 Ram . | . . . . . . . . . . Kick 5 | . . . . . . . . 5 . Crush . | . . . . . . . . . . Escape Stasis 37 | . . . . . . . . 1 36 Rewire . | . . . . . . . . . . Trap 2 | . . . . . . 2 . . . Miscellaneous 34 | . . . . . . . . 25 9 Route ------- -11/Scrapyard -10/Materials -10/Mines (discovered 2 exits: *Mat x2) -9/Materials -9/Mines (discovered 3 exits: *Mat x2 / *Exi) -9/Exiles (discovered 2 exits: *Min x2) -8/Mines (discovered 2 exits: *Mat x2) -8/Materials (discovered 2 exits: [*Fac] / *Sto) -8/Storage -8/Garrison History --------- Turn | Location | Event 13 | -11/Scrapyard | Discovered new exit (range 16) 88 | -11/Scrapyard | Entered Materials 282 | -10/Materials | Discovered new exit (range 15) 320 | -10/Materials | Build established: Mutant 344 | -10/Materials | Entered Mines 510 | -10/Mines | Learned location of Storage (-8) 670 | -10/Mines | Assembled infested the area 675 | -10/Mines | Assisted by a Guerilla fighting off Assembled 742 | -10/Mines | Destroyed 11 combat bots 744 | -10/Mines | Discovered new exit (range 11) 753 | -10/Mines | Learned location of Zion (-6) 847 | -10/Mines | Learned Materials trap positions 935 | -10/Mines | Discovered new exit (range 4) 946 | -10/Mines | Assisted by bots powering up and referring to "LRC-V3" 948 | -10/Mines | Learned location of Mines (-9) 1070 | -10/Mines | Entered Materials 1070 | -9/Materials | Accompanied by 3 allies 1070 | -9/Materials | Evolved 2 slots: Utility x2 1071 | -9/Materials | Loaded intel: 19 trap records 1281 | -9/Materials | Identified exit to Mines 1507 | -9/Materials | Entered Mines 1694 | -9/Mines | Build established: Scavenger-Mutant 1971 | -9/Mines | Discovered new exit (range 5) 1982 | -9/Mines | Discovered new exit (range 13) 2022 | -9/Mines | Deemed a non-threat by the Exiles lab entrance 2070 | -9/Mines | Found a hidden stash of uninstalled traps 2307 | -9/Mines | Discovered new exit (range 9) 2523 | -9/Mines | Learned location of 1 exit from Materials 2683 | -9/Mines | Entered Exiles 2683 | -9/Exiles | Found Exiles lab abandoned 2683 | -9/Exiles | Accompanied by 2 allies 2713 | -9/Exiles | Led the pair of lost Derelicts to a safe place 2714 | -9/Exiles | Discovered new exit (range 15) 3552 | -9/Exiles | Discovered new exit (range 11) 3571 | -9/Exiles | Entered Mines 5078 | -8/Mines | System corruption reached 10% 5095 | -8/Mines | Discovered new exit (range 5) 5105 | -8/Mines | Discovered new exit (range 7) 5108 | -8/Mines | Lost 5 parts (1p3u1w) 5315 | -8/Mines | Entered Materials 5315 | -8/Materials | Evolved 2 slots: Propulsion x2 5316 | -8/Materials | Identified exit to Storage 5568 | -8/Materials | Discovered new exit (range 20) 5612 | -8/Materials | Entered Storage 5633 | -8/Storage | Lost 4 parts (1n1u2w) 5760 | -8/Storage | Assisted by bots powering up and referring to "LRC-V3" 5917 | -8/Storage | Lost 5 allies 5936 | -8/Storage | Met a pair of Derelict thieves 6043 | -8/Storage | Lost 7 allies 6242 | -8/Storage | Crushed by falling debris 6242 | -8/Storage | Core integrity fell below 50% 6257 | -8/Storage | Crushed by falling debris 6257 | -8/Storage | System corruption reached 10% 6263 | -8/Storage | Crushed by falling debris 6294 | -8/Storage | Lost 6 parts (3n3u) 6565 | -8/Storage | Build established: Mutant 6588 | -8/Storage | Garrison activated, responded to threat 6668 | -8/Storage | Lost 3 parts (1n2u) 6809 | -8/Storage | Identified exit to Garrison 6809 | -8/Storage | Entered Garrison 6901 | -8/Garrison | Core integrity fell below 20% 6997 | -8/Garrison | Phase Generator disabled 7096 | -8/Garrison | Garrison Relay disabled 7125 | -8/Garrison | Triggered checkpoint 7198 | -8/Garrison | Installed Relay Interface Framework 7275 | -8/Garrison | Triggered checkpoint 7293 | -8/Garrison | Triggered checkpoint 7384 | -8/Garrison | Expanded RIF knowledge: Signal Jamming 7401 | -8/Garrison | Triggered checkpoint 7420 | -8/Garrison | Build established: Hacker-Mutant 7453 | -8/Garrison | Garrison Relay disabled 7472 | -8/Garrison | Destroyed by Y-45 Defender with Heavy Assault Rifle Last Messages --------------- System corrupted: Lgt. Assault Rifle jammed. TBBTLIE O5QD&TO>2>II